bitfinex/quotes_BTCUSD_20230110
["timestamp","ask_amount","ask_price","bid_price","bid_amount"]
[1673379281634,4.86662784,17434.0,17428.0,0.00971337]
[1673379281892,4.86662784,17434.0,17428.0,0.24739126]
[1673379281893,0.7726157,17432.0,17428.0,0.24739126]
[1673379282144,2.46477269,17431.0,17428.0,0.20971337]
[1673379282370,0.079748,17430.0,17428.0,0.90323306]
[1673379282637,1.55381112,17431.0,17429.0,0.2]
[1673379282888,1.81912738,17431.0,17429.0,0.88824921]
[1673379283143,2.21492248,17431.0,17429.0,0.68824921]
[1673379283395,2.24592248,17431.0,17429.0,0.68824921]
[1673379283652,2.04592248,17431.0,17429.0,0.68824921]
[1673379284417,1.47220348,17431.0,17429.0,0.68824921]
[1673379284669,1.44120348,17431.0,17429.0,0.68824921]
[1673379284928,1.47220348,17431.0,17429.0,0.69624921]
[1673379285222,1.67220348,17431.0,17429.0,0.69624921]
[1673379285470,1.47220348,17431.0,17429.0,0.69624921]
[1673379285704,1.44120348,17431.0,17429.0,0.68824921]
[1673379286010,0.89848748,17431.0,17429.0,0.69624921]
[1673379286253,0.86748748,17431.0,17429.0,0.68824921]
[1673379286575,0.56748748,17431.0,17429.0,0.68824921]
[1673379287868,0.59948748,17431.0,17429.0,0.68924921]
[1673379288372,0.032,17431.0,17429.0,0.68924921]
[1673379288634,0.032,17431.0,17429.0,1.05244921]
[1673379289182,0.032,17431.0,17429.0,1.54059512]
[1673379289979,0.032,17431.0,17430.0,0.60552511]
[1673379290222,0.032,17431.0,17430.0,0.80552511]
[1673379290998,0.71272447,17432.0,17430.0,0.80552511]
[1673379291251,0.032,17431.0,17430.0,1.29453832]
[1673379291497,0.032,17431.0,17430.0,0.80652511]
[1673379292010,0.71272447,17432.0,17430.0,0.80552511]
[1673379292266,0.74372447,17432.0,17430.0,0.81352511]
[1673379293324,0.74372447,17432.0,17430.0,0.61352511]
[1673379294281,0.71272447,17432.0,17430.0,0.60552511]
[1673379295528,0.74472447,17432.0,17430.0,0.60652511]
[1673379296726,0.5,17431.0,17430.0,0.60652511]
[1673379296986,0.91641685,17432.0,17430.0,0.60652511]
[1673379297714,0.5,17431.0,17430.0,0.60552511]
[1673379297957,0.3,17431.0,17430.0,0.62952511]
[1673379298195,0.3,17431.0,17430.0,0.62946434]
[1673379298437,0.3,17431.0,17430.0,0.60546434]
[1673379298677,0.74472447,17432.0,17430.0,0.60646434]
[1673379298927,0.71272447,17432.0,17430.0,0.60546434]
[1673379300195,0.71272447,17432.0,17431.0,0.59176498]
[1673379300464,0.2,17433.0,17431.0,0.59176498]
[1673379300750,0.032,17432.0,17431.0,0.59176498]
[1673379301246,0.85474141,17433.0,17431.0,0.59176498]
[1673379301752,0.88574141,17433.0,17431.0,0.58976198]
[1673379301979,0.85474141,17433.0,17431.0,0.58976198]
[1673379302255,0.032,17432.0,17431.0,0.59076198]
[1673379302759,0.029474,17432.0,17431.0,0.59076198]
[1673379303775,1.02643379,17433.0,17431.0,0.58976198]
[1673379304024,1.02643379,17433.0,17431.0,0.59676198]
[1673379304025,1.05543379,17433.0,17431.0,0.59676198]
[1673379304283,1.05543379,17433.0,17431.0,0.58976198]
[1673379304528,1.05543379,17433.0,17431.0,0.59076198]
[1673379304529,0.03,17432.0,17431.0,0.59076198]
[1673379304796,0.03,17432.0,17431.0,0.58976198]
[1673379305062,0.03,17432.0,17431.0,0.59676198]
[1673379305320,1.28397236,17433.0,17431.0,0.58976198]
[1673379305560,0.3,17432.0,17431.0,0.61476198]
[1673379306325,0.82643379,17433.0,17431.0,0.61476198]
[1673379307341,0.82643379,17433.0,17431.0,0.58976198]
[1673379307599,1.05643379,17433.0,17431.0,0.59076198]
[1673379308414,1.31397236,17433.0,17431.0,0.59076198]
[1673379308678,0.5,17432.0,17431.0,0.59076198]
[1673379308901,1.31397236,17433.0,17431.0,0.59076198]
[1673379309911,0.67169238,17432.0,17431.0,0.59076198]
[1673379310933,0.47169238,17432.0,17431.0,0.59076198]
[1673379311211,0.47169238,17432.0,17431.0,0.58976198]
[1673379311456,0.47169238,17432.0,17431.0,0.61476198]
[1673379312445,0.67169238,17432.0,17431.0,0.61476198]
[1673379312680,0.67169238,17432.0,17431.0,0.025]
[1673379312900,0.47169238,17432.0,17431.0,0.025]
[1673379315653,0.17169238,17432.0,17431.0,0.025]
[1673379316415,1.08397236,17433.0,17431.0,0.025]
[1673379316669,1.42735712,17433.0,17431.0,0.025]
[1673379316926,0.3,17432.0,17431.0,0.025]
[1673379317180,0.47169238,17432.0,17431.0,0.025]
[1673379317442,0.67169238,17432.0,17431.0,0.001]
[1673379317707,0.47169238,17432.0,17431.0,0.67252051]
[1673379317980,0.17169238,17432.0,17431.0,0.69752051]
[1673379318559,1.08397236,17433.0,17431.0,0.69752051]
[1673379319014,1.28397236,17433.0,17431.0,0.69752051]
[1673379319816,1.28397236,17433.0,17431.0,0.67252051]
[1673379320060,1.31397236,17433.0,17431.0,0.67352051]
[1673379320534,1.11397236,17433.0,17431.0,0.67352051]
[1673379321297,1.11385519,17433.0,17431.0,0.87352051]
[1673379321541,1.31385519,17433.0,17431.0,0.67352051]
[1673379321797,0.17169238,17432.0,17431.0,0.67352051]
[1673379322051,0.17169238,17432.0,17431.0,0.67252051]
[1673379322311,0.17169238,17432.0,17431.0,0.69752051]
[1673379322556,0.17169238,17432.0,17431.0,0.67252051]
[1673379322802,0.17169238,17432.0,17431.0,0.77052051]
[1673379323048,0.17169238,17432.0,17431.0,0.67252051]
[1673379323285,0.17369238,17432.0,17431.0,0.81252051]
[1673379323539,0.002,17432.0,17431.0,0.81252051]
[1673379323787,0.17369238,17432.0,17431.0,0.81252051]
[1673379325056,0.002,17432.0,17431.0,0.81252051]
[1673379325293,0.17369238,17432.0,17431.0,0.81252051]
[1673379325545,0.002,17432.0,17431.0,0.81252051]
[1673379325795,0.002,17432.0,17431.0,1.17210451]
[1673379326041,0.002,17432.0,17431.0,1.34361639]
[1673379326297,0.002,17432.0,17431.0,1.54361639]
[1673379326818,0.002,17432.0,17431.0,1.34361639]
[1673379327815,0.002,17432.0,17431.0,1.54361639]
[1673379328308,0.002,17432.0,17431.0,1.18403239]
[1673379328560,0.002,17432.0,17431.0,1.50841639]
[1673379330329,0.002,17432.0,17431.0,1.70841639]
[1673379331815,0.002,17432.0,17431.0,1.50841639]
[1673379332055,0.002,17432.0,17431.0,1.14883239]
[1673379332557,0.002,17432.0,17431.0,0.97732051]
[1673379332816,0.03422992,17432.0,17431.0,0.97732051]
[1673379333055,0.03422992,17432.0,17431.0,1.33690451]
[1673379333318,0.03422992,17432.0,17431.0,1.50841639]
[1673379333801,0.03422992,17432.0,17431.0,1.50877957]
[1673379334064,0.03422992,17432.0,17431.0,1.14919557]
[1673379334788,0.03422992,17432.0,17431.0,1.50877957]
[1673379335296,0.03422992,17432.0,17431.0,0.97768369]
[1673379337302,0.03422992,17432.0,17431.0,1.14919557]
[1673379337815,0.03422992,17432.0,17431.0,0.97768369]
[1673379338056,0.03422992,17432.0,17431.0,1.14919557]
[1673379338303,0.03422992,17432.0,17431.0,0.97768369]
[1673379339578,0.03422992,17432.0,17431.0,1.14919557]
[1673379339828,0.03422992,17432.0,17431.0,0.97768369]
[1673379340337,0.03422992,17432.0,17431.0,1.14919557]
[1673379341623,0.03422992,17432.0,17431.0,1.14911488]
[1673379341879,0.03422992,17432.0,17431.0,1.50869888]
[1673379342129,0.2059223,17432.0,17431.0,0.3048]
[1673379342426,1.28577092,17432.0,17431.0,0.3048]
[1673379344126,0.98577092,17432.0,17431.0,0.3048]
[1673379344643,0.72823235,17432.0,17431.0,0.3048]
[1673379345413,0.72823235,17432.0,17431.0,0.30516318]
[1673379346208,0.2059223,17432.0,17431.0,0.3048]
[1673379346467,0.76346087,17432.0,17431.0,0.14]
[1673379346705,0.46346087,17432.0,17431.0,0.14]
[1673379346957,0.76346087,17432.0,17431.0,0.14]
[1673379348692,0.96346087,17432.0,17431.0,0.14]
[1673379348943,0.76346087,17432.0,17431.0,0.14]
[1673379349201,0.93515325,17432.0,17431.0,0.14]
[1673379349952,1.13515325,17432.0,17431.0,0.14]
[1673379350199,0.93515325,17432.0,17431.0,0.14036318]
[1673379350448,0.93515325,17432.0,17431.0,0.14]
[1673379350449,0.76378395,17432.0,17431.0,0.14]
[1673379350731,0.03422992,17432.0,17431.0,0.78648047]
[1673379350986,0.74161044,17435.0,17432.0,0.92955402]
[1673379350987,0.93983118,17435.0,17432.0,0.92955402]
[1673379351239,0.56409595,17434.0,17433.0,0.35994713]
[1673379351505,0.56409595,17434.0,17432.0,0.72955402]
[1673379351506,0.66292111,17433.0,17432.0,0.72955402]
[1673379351759,1.43627367,17433.0,17432.0,0.72955402]
[1673379352013,1.43627338,17433.0,17432.0,0.72955402]
[1673379352261,1.26428655,17433.0,17432.0,0.72955402]
[1673379352734,1.39288678,17433.0,17432.0,0.72955402]
[1673379352989,1.76428655,17433.0,17432.0,0.72955402]
[1673379353243,1.76428655,17433.0,17432.0,0.74155402]
[1673379353244,1.58780578,17433.0,17432.0,0.74155402]
[1673379353492,2.01154811,17433.0,17432.0,0.74155402]
[1673379353739,1.66755378,17433.0,17432.0,0.74155402]
[1673379353986,1.58780578,17433.0,17432.0,0.74155402]
[1673379354483,1.58780578,17433.0,17432.0,0.72955402]
[1673379354734,1.58780578,17433.0,17432.0,0.73655402]
[1673379355527,1.93277147,17433.0,17432.0,0.72955402]
[1673379356026,1.58880578,17433.0,17432.0,0.72955402]
[1673379356772,1.93277137,17433.0,17432.0,0.72955402]
[1673379357265,2.01251937,17433.0,17432.0,0.72955402]
[1673379357522,2.01251028,17433.0,17432.0,0.72955402]
[1673379358554,2.58613428,17433.0,17432.0,0.72955402]
[1673379360050,2.24217778,17433.0,17432.0,0.72955402]
[1673379361027,2.58612194,17433.0,17432.0,0.72955402]
[1673379361270,1.66855378,17433.0,17432.0,0.72955402]
[1673379361527,2.01248555,17433.0,17432.0,0.72955402]
[1673379364612,1.81248555,17433.0,17432.0,0.72955402]
[1673379364845,1.56142671,17433.0,17432.0,0.72955402]
[1673379365092,1.64117471,17433.0,17432.0,0.72955402]
[1673379365308,1.84117471,17433.0,17432.0,0.72955402]
[1673379365566,2.01248555,17433.0,17432.0,0.72955402]
[1673379366544,1.81248555,17433.0,17432.0,0.72955402]
[1673379367055,1.73273755,17433.0,17432.0,0.72955402]
[1673379367299,1.73273755,17433.0,17432.0,0.72991717]
[1673379367300,1.56142166,17433.0,17432.0,0.72991717]
[1673379367557,1.56142166,17433.0,17432.0,0.72955402]
[1673379369320,1.64116966,17433.0,17432.0,0.72955402]
[1673379370100,1.56142166,17433.0,17432.0,0.72955402]
[1673379370354,1.56142166,17433.0,17432.0,0.72991717]
[1673379370608,1.56142166,17433.0,17432.0,0.72955402]
[1673379370609,1.72612166,17433.0,17432.0,0.72955402]
[1673379371846,0.43087287,17433.0,17432.0,1.66408919]
[1673379372124,0.43087287,17433.0,17432.0,1.7859953]
[1673379372366,0.001,17433.0,17432.0,2.27151694]
[1673379372681,0.001,17433.0,17432.0,2.44338986]
[1673379372973,0.001,17433.0,17432.0,2.27159853]
[1673379373687,0.70703715,17434.0,17432.0,2.27159853]
[1673379373939,0.70703715,17434.0,17433.0,0.359584]
[1673379374185,0.70703715,17434.0,17433.0,0.2]
[1673379374700,0.17195782,17434.0,17433.0,0.2]
[1673379374957,0.43299031,17435.0,17433.0,0.559584]
[1673379375267,1.24906485,17435.0,17434.0,0.359584]
[1673379375476,1.54906485,17435.0,17433.0,0.2]
[1673379375724,1.04906485,17435.0,17433.0,0.20155449]
[1673379375990,1.04906485,17435.0,17433.0,0.34255449]
[1673379376243,1.04906485,17435.0,17433.0,0.20155449]
[1673379376546,1.04906485,17435.0,17434.0,0.012]
[1673379376776,1.04906485,17435.0,17433.0,1.40447547]
[1673379377030,0.7911498,17435.0,17433.0,1.001062]
[1673379378309,0.61919198,17435.0,17433.0,1.48632446]
[1673379378559,0.7911498,17435.0,17433.0,1.48632446]
[1673379378813,0.61919198,17435.0,17433.0,1.48631355]
[1673379379087,0.7911498,17435.0,17433.0,1.001062]
[1673379379569,0.7911498,17435.0,17434.0,0.1647]
[1673379379820,0.61919198,17435.0,17434.0,0.1647]
[1673379380071,0.7911498,17435.0,17434.0,0.1647]
[1673379380321,0.61919198,17435.0,17434.0,0.1647]
[1673379381859,0.61919198,17435.0,17434.0,0.1767]
[1673379386310,0.00311744,17435.0,17434.0,0.1767]
[1673379386575,0.00311744,17435.0,17434.0,2.32312571]
[1673379387654,0.00311744,17435.0,17434.0,2.89671671]
[1673379387914,1e-08,17435.0,17434.0,2.89671671]
[1673379388404,1e-08,17435.0,17434.0,3.23328963]
[1673379388421,1e-08,17435.0,17434.0,3.06141671]
[1673379388657,1e-08,17435.0,17434.0,3.23328963]
[1673379389164,1e-08,17435.0,17434.0,3.22128963]
[1673379389416,1e-08,17435.0,17434.0,3.18841671]
[1673379390967,1e-08,17435.0,17434.0,3.02451671]
[1673379391482,1e-08,17435.0,17434.0,2.46042149]
[1673379392286,1e-08,17435.0,17434.0,2.46018385]
[1673379392526,1e-08,17435.0,17434.0,1.97506187]
[1673379393545,1e-08,17435.0,17434.0,2.46017311]
[1673379400759,0.02820166,17435.0,17434.0,2.46017311]
[1673379403391,0.02820166,17435.0,17434.0,3.10634501]
[1673379405132,0.02753431,17435.0,17434.0,3.10634501]
[1673379410390,0.02753431,17435.0,17434.0,3.27821793]
[1673379413198,0.02753431,17435.0,17434.0,3.10634501]
[1673379414217,0.02753431,17435.0,17434.0,2.04764277]
[1673379414477,0.02753431,17435.0,17434.0,1.68805877]
[1673379415015,0.02753431,17435.0,17434.0,2.04764277]
[1673379416034,0.02753431,17435.0,17434.0,1.68805877]
[1673379416821,0.02753431,17435.0,17434.0,2.04764277]
[1673379417069,0.02753431,17435.0,17434.0,1.68805877]
[1673379417316,0.02753431,17435.0,17434.0,2.04764277]
[1673379417815,0.02753431,17435.0,17434.0,1.68805877]
[1673379418585,0.02753431,17435.0,17434.0,2.04764277]
[1673379419101,0.02753431,17435.0,17434.0,1.68805877]
[1673379420635,0.02753431,17435.0,17434.0,1.7183469]
[1673379420893,0.02753431,17435.0,17434.0,1.5218629]
[1673379421395,0.02753431,17435.0,17434.0,2.00683919]
[1673379421649,0.02753431,17435.0,17434.0,2.70219611]
[1673379421896,1e-08,17435.0,17434.0,3.80723115]
[1673379422381,0.08882117,17437.0,17435.0,0.79598217]
[1673379422647,0.08882117,17437.0,17436.0,0.524284]
[1673379422914,0.95079964,17438.0,17436.0,0.1647]
[1673379423164,0.95079964,17438.0,17436.0,0.8438039]
[1673379423165,0.85068964,17438.0,17436.0,0.8438039]
[1673379423384,1.18962141,17438.0,17436.0,0.8438039]
[1673379423640,0.84568964,17438.0,17436.0,0.8438039]
[1673379423886,0.74568964,17438.0,17436.0,0.8438039]
[1673379424138,0.74568964,17438.0,17436.0,0.9828039]
[1673379424388,0.64568964,17438.0,17436.0,0.8438039]
[1673379424635,0.54568964,17438.0,17436.0,0.9838039]
[1673379424921,0.78962141,17438.0,17436.0,0.9838039]
[1673379425428,0.68962141,17438.0,17436.0,0.9838039]
[1673379425652,0.58962141,17438.0,17436.0,0.9838039]
[1673379426407,1.01885235,17438.0,17436.0,0.9838039]
[1673379426707,0.77316271,17438.0,17436.0,0.9838039]
[1673379428211,0.77316271,17438.0,17436.0,0.8191039]
[1673379428212,0.34393177,17438.0,17436.0,0.8191039]
[1673379429250,0.34393177,17438.0,17437.0,9.298e-05]
[1673379429500,0.34393177,17438.0,17436.0,0.8191039]
[1673379429752,0.77316271,17438.0,17436.0,0.8191039]
[1673379430264,0.77316271,17438.0,17436.0,0.81919688]
[1673379431530,0.34393177,17438.0,17436.0,0.81919688]
[1673379431785,0.77316271,17438.0,17436.0,0.81919688]
[1673379432285,0.17199431,17437.0,17436.0,0.81919688]
[1673379433276,0.17199431,17437.0,17436.0,0.82087546]
[1673379433530,0.17199431,17437.0,17436.0,0.68087546]
[1673379433782,0.17199431,17437.0,17436.0,0.81987546]
[1673379434811,0.42999338,17437.0,17436.0,0.81987546]
[1673379435581,0.17199431,17437.0,17436.0,0.81987546]
[1673379436063,0.42999338,17437.0,17436.0,0.8181039]
[1673379436545,0.72999338,17437.0,17436.0,0.8181039]
[1673379436818,0.42999338,17437.0,17436.0,0.8181039]
[1673379437076,0.72999338,17437.0,17436.0,0.8181039]
[1673379437320,0.77392515,17437.0,17436.0,0.81996379]
[1673379437572,0.42999338,17437.0,17436.0,0.81996379]
[1673379438073,1.07392515,17437.0,17436.0,0.81996379]
[1673379438317,0.90193084,17437.0,17436.0,0.81996379]
[1673379438560,0.73000737,17437.0,17436.0,0.81996379]
[1673379439300,0.73001021,17437.0,17436.0,0.81996379]
[1673379439544,0.43001021,17437.0,17436.0,0.81996379]
[1673379440543,0.77394198,17437.0,17436.0,0.8181039]
[1673379440787,0.90193084,17437.0,17436.0,0.139]
[1673379441275,0.60193084,17437.0,17436.0,0.139]
[1673379442018,0.77394871,17437.0,17436.0,0.139]
[1673379442261,0.43001694,17437.0,17436.0,0.139]
[1673379442997,0.43001694,17437.0,17436.0,0.65909496]
[1673379443536,0.4299434,17437.0,17436.0,0.65909496]
[1673379443807,0.4299434,17437.0,17436.0,0.85909496]
[1673379444562,0.17201787,17437.0,17436.0,0.85909496]
[1673379445066,0.17201787,17437.0,17436.0,0.65909496]
[1673379445563,0.17201787,17437.0,17436.0,0.65918794]
[1673379447600,0.17201787,17437.0,17436.0,1.13211379]
[1673379447867,0.64559871,17438.0,17436.0,0.85918794]
[1673379448124,0.64559871,17438.0,17436.0,1.33219348]
[1673379448381,0.17201787,17438.0,17436.0,1.74174429]
[1673379448635,0.17201787,17438.0,17437.0,0.3647]
[1673379448876,0.17201787,17438.0,17437.0,0.724284]
[1673379449131,0.17201787,17438.0,17437.0,0.3647]
[1673379450401,0.17201787,17438.0,17437.0,1.07767858]
[1673379450672,0.18076694,17439.0,17437.0,2.26280329]
[1673379450933,0.18076694,17439.0,17438.0,0.359584]
[1673379451447,0.18076694,17439.0,17437.0,1.79017158]
[1673379451966,0.18076694,17439.0,17437.0,1.65117158]
[1673379452206,0.18076694,17439.0,17438.0,1.30147829]
[1673379452690,0.18076694,17439.0,17438.0,1.16147829]
[1673379452976,0.18076694,17439.0,17438.0,1.16201926]
[1673379453225,0.00874907,17439.0,17438.0,0.80243526]
[1673379453483,0.00874907,17439.0,17438.0,0.94143526]
[1673379454233,0.18076694,17439.0,17438.0,0.74143526]
[1673379454990,0.18076694,17439.0,17438.0,0.74089429]
[1673379455784,0.48076694,17439.0,17438.0,0.74089429]
[1673379456042,0.48076694,17439.0,17438.0,0.74143526]
[1673379456043,0.18076694,17439.0,17438.0,0.74143526]
[1673379456304,0.43861977,17439.0,17438.0,0.74143526]
[1673379456872,0.18076694,17439.0,17438.0,0.74143526]
[1673379458363,0.43861977,17439.0,17438.0,0.74143526]
[1673379459135,0.18076694,17439.0,17438.0,0.74143526]
[1673379460710,0.43861977,17439.0,17438.0,0.74143526]
[1673379460974,0.18076694,17439.0,17438.0,0.74143526]
[1673379461997,0.73861977,17439.0,17438.0,0.74089429]
[1673379462236,0.43861977,17439.0,17438.0,0.74106232]
[1673379462477,0.73861977,17439.0,17438.0,0.74106232]
[1673379463233,0.73861977,17439.0,17438.0,0.74089429]
[1673379463768,0.73861977,17439.0,17438.0,0.74106232]
[1673379464237,0.43861977,17439.0,17438.0,0.74106232]
[1673379464480,0.18076694,17439.0,17438.0,0.74106232]
[1673379464721,0.00874907,17439.0,17438.0,0.74106232]
[1673379465477,0.47102035,17440.0,17438.0,0.94106232]
[1673379466953,0.47102035,17440.0,17438.0,0.80206232]
[1673379467210,0.47102035,17440.0,17438.0,0.94206232]
[1673379467691,0.47102035,17440.0,17438.0,0.74206232]
[1673379468706,0.17201787,17439.0,17438.0,0.74189429]
[1673379469721,0.47201787,17439.0,17438.0,0.74189429]
[1673379469966,0.17201787,17439.0,17438.0,0.74189429]
[1673379470214,0.17201787,17439.0,17438.0,0.60189429]
[1673379470463,0.17201787,17439.0,17438.0,0.74089429]
[1673379470713,0.47201787,17439.0,17438.0,0.74089429]
[1673379471461,0.7298707,17439.0,17438.0,0.74089429]
[1673379471710,0.4298707,17439.0,17438.0,0.97857218]
[1673379471961,0.17567971,17441.0,17438.0,1.64282536]
[1673379471962,0.78478218,17441.0,17438.0,1.64282536]
[1673379472217,0.78478218,17441.0,17439.0,0.359584]
[1673379472218,0.50370151,17441.0,17439.0,0.359584]
[1673379472480,0.50370151,17441.0,17439.0,0.94542884]
[1673379472720,0.50370151,17441.0,17439.0,0.70775095]
[1673379472972,0.50370151,17441.0,17440.0,0.00017105]
[1673379473231,0.50370151,17441.0,17440.0,0.10411105]
[1673379473232,0.24584868,17441.0,17440.0,0.10411105]
[1673379473726,0.18299758,17441.0,17440.0,0.77346495]
[1673379474218,0.44085041,17441.0,17440.0,0.77346495]
[1673379474462,0.74085041,17441.0,17440.0,0.91246495]
[1673379474710,0.18299758,17441.0,17440.0,0.91246495]
[1673379474970,0.44085041,17441.0,17440.0,0.13917105]
[1673379475235,0.80613681,17441.0,17440.0,0.139]
[1673379475470,1.17805071,17441.0,17440.0,0.139]
[1673379475720,1.42917682,17441.0,17440.0,0.139]
[1673379476475,1.34942882,17441.0,17440.0,0.139]
[1673379477503,1.42917682,17441.0,17440.0,0.139]
[1673379478024,1.08524505,17441.0,17440.0,0.139]
[1673379478318,1.34909406,17441.0,17440.0,0.139]
[1673379479033,0.77880766,17441.0,17440.0,0.37667789]
[1673379479292,0.77880766,17441.0,17440.0,0.80290305]
[1673379479293,0.17778075,17441.0,17440.0,0.80290305]
[1673379480311,0.00597971,17441.0,17440.0,0.80290305]
[1673379480563,0.00597971,17441.0,17440.0,1.16248705]
[1673379481328,0.00597971,17441.0,17440.0,0.80290305]
[1673379482568,0.00597971,17441.0,17440.0,1.16248705]
[1673379483324,0.00597971,17441.0,17440.0,0.80290305]
[1673379483812,0.00597971,17441.0,17440.0,1.16248705]
[1673379485050,0.00597971,17441.0,17440.0,0.139]
[1673379485051,0.05972383,17441.0,17440.0,0.139]
[1673379485305,0.48921611,17441.0,17440.0,0.139]
[1673379485566,0.96101208,17441.0,17440.0,0.139]
[1673379487165,1.53437308,17441.0,17440.0,0.139]
[1673379487394,1.90591278,17441.0,17440.0,0.139]
[1673379487613,1.98566078,17441.0,17440.0,0.139]
[1673379487869,1.75171965,17441.0,17440.0,0.139]
[1673379488118,2.4191168,17441.0,17440.0,0.139]
[1673379488409,2.06184971,17441.0,17440.0,0.139]
[1673379489142,1.94912066,17441.0,17437.0,1.44623753]
[1673379489394,1.2749114,17441.0,17440.0,0.023]
[1673379489714,1.13131166,17441.0,17437.0,1.17585118]
[1673379489938,1.8682724,17441.0,17437.0,0.97484587]
[1673379490184,0.4296433,17439.0,17437.0,0.70478587]
[1673379490429,0.8272236,17439.0,17437.0,0.70478587]
[1673379490691,0.8272236,17439.0,17436.0,0.59935755]
[1673379490692,0.47185733,17438.0,17436.0,0.59935755]
[1673379490950,0.31545707,17438.0,17436.0,0.59935755]
[1673379491187,0.17185733,17438.0,17437.0,0.2]
[1673379491445,0.68362386,17439.0,17437.0,0.5961055]
[1673379491950,0.68362386,17439.0,17437.0,0.6841055]
[1673379492196,0.22583789,17439.0,17437.0,0.6841055]
[1673379492700,0.42583789,17439.0,17437.0,0.6841055]
[1673379492982,0.4296433,17440.0,17438.0,0.64086233]
[1673379493225,0.23474302,17440.0,17439.0,0.359584]
[1673379493758,0.43474302,17440.0,17438.0,1.51297367]
[1673379494007,0.69252899,17440.0,17438.0,0.80456233]
[1673379494258,0.43474302,17440.0,17439.0,0.359584]
[1673379494501,0.23474302,17440.0,17438.0,1.27527277]
[1673379494797,0.24574302,17440.0,17439.0,0.10406943]
[1673379495031,0.011,17440.0,17439.0,0.46365343]
[1673379495256,0.011,17440.0,17439.0,0.66365343]
[1673379495509,0.17794704,17441.0,17439.0,0.66365343]
[1673379495754,0.17794704,17441.0,17440.0,0.359584]
[1673379496045,0.17794704,17441.0,17439.0,0.47042255]
[1673379496286,0.001,17440.0,17439.0,0.34112943]
[1673379496525,0.23926775,17441.0,17439.0,0.00012943]
[1673379496781,0.23915775,17441.0,17439.0,0.08812943]
[1673379497039,0.00597971,17441.0,17440.0,0.523084]
[1673379497290,0.00597971,17441.0,17440.0,2.34012469]
[1673379497550,0.00597971,17441.0,17440.0,1.869872]
[1673379498050,0.00597971,17441.0,17440.0,1.296478]
[1673379498309,0.00597971,17441.0,17440.0,1.313478]
[1673379498609,0.00597971,17441.0,17440.0,1.149978]
[1673379498855,0.00597971,17441.0,17440.0,1.62007187]
[1673379499084,0.00597971,17441.0,17440.0,2.143109]
[1673379499331,0.00597971,17441.0,17440.0,2.716503]
[1673379502664,0.34992602,17444.0,17440.0,2.88837592]
[1673379502667,0.18522602,17444.0,17441.0,0.2]
[1673379502900,0.01336869,17444.0,17442.0,1.64028685]
[1673379503161,0.01336869,17444.0,17443.0,0.82951906]
[1673379503413,0.01336869,17444.0,17443.0,1.70020994]
[1673379503695,0.01336869,17444.0,17443.0,1.86490994]
[1673379503921,0.01325869,17444.0,17443.0,1.86490994]
[1673379504176,0.01325869,17444.0,17443.0,1.6652059]
[1673379504425,0.01325869,17444.0,17443.0,1.1955331]
[1673379504945,0.01325869,17444.0,17443.0,1.80451926]
[1673379505186,0.01325869,17444.0,17443.0,2.00451926]
[1673379505449,0.01325869,17444.0,17443.0,2.41311426]
[1673379505709,0.01325869,17444.0,17443.0,2.41324918]
[1673379505961,0.01325869,17444.0,17443.0,2.98654418]
[1673379513392,0.01325869,17444.0,17443.0,2.31529508]
[1673379513656,0.01325869,17444.0,17443.0,3.06823446]
[1673379514698,0.01325869,17444.0,17443.0,2.92923446]
[1673379514945,0.01325869,17444.0,17443.0,3.06823446]
[1673379515235,0.01325869,17444.0,17443.0,2.92923446]
[1673379516206,0.01325869,17444.0,17443.0,3.06823446]
[1673379516705,0.01325869,17444.0,17443.0,2.2896483]
[1673379517211,0.01325869,17444.0,17443.0,2.75952872]
[1673379517470,0.01325869,17444.0,17443.0,2.75957468]
[1673379518224,0.25740129,17447.0,17443.0,2.75957468]
[1673379518478,0.15305682,17447.0,17444.0,1.24436258]
[1673379518727,0.51772418,17447.0,17445.0,0.00229836]
[1673379519266,0.21766418,17447.0,17445.0,0.00229836]
[1673379519500,0.06466736,17447.0,17445.0,0.00229836]
[1673379519749,0.06466736,17447.0,17445.0,0.08329836]
[1673379521004,0.06466736,17447.0,17445.0,0.78963878]
[1673379521252,0.53545733,17448.0,17445.0,0.78963878]
[1673379521499,0.59391404,17448.0,17446.0,0.50708425]
[1673379521750,0.079748,17447.0,17446.0,0.50708425]
[1673379522007,0.59391404,17448.0,17446.0,0.50708425]
[1673379522507,0.279748,17447.0,17446.0,0.50708425]
[1673379522770,0.279748,17447.0,17446.0,0.51908425]
[1673379523042,0.279748,17447.0,17446.0,0.50951063]
[1673379523296,0.579748,17447.0,17446.0,0.50708425]
[1673379523550,0.279748,17447.0,17446.0,0.50708425]
[1673379523799,0.59391404,17448.0,17446.0,0.51908425]
[1673379524045,0.079748,17447.0,17446.0,0.52151063]
[1673379524528,0.379748,17447.0,17446.0,0.51908425]
[1673379524791,0.079748,17447.0,17446.0,0.50708425]
[1673379525039,0.079748,17447.0,17446.0,0.50951063]
[1673379525560,0.079748,17447.0,17446.0,0.52151063]
[1673379525812,0.079748,17447.0,17446.0,0.51908425]
[1673379526050,0.079748,17447.0,17446.0,0.51920557]
[1673379526306,0.079748,17447.0,17446.0,0.51908425]
[1673379527035,0.079748,17447.0,17446.0,0.52151063]
[1673379527284,0.079748,17447.0,17446.0,0.51908425]
[1673379531136,0.379748,17447.0,17446.0,0.012]
[1673379531404,0.87038751,17447.0,17446.0,0.012]
[1673379531681,0.61260154,17447.0,17446.0,0.012]
[1673379532174,0.61260154,17447.0,17446.0,0.01234434]
[1673379532672,0.61260154,17447.0,17446.0,0.012]
[1673379533445,0.87038751,17447.0,17446.0,0.012]
[1673379533695,1.04224481,17447.0,17446.0,0.012]
[1673379533956,1.24224481,17447.0,17446.0,0.012]
[1673379534297,1.32689681,17447.0,17446.0,0.012]
[1673379534496,1.15479049,17447.0,17446.0,0.012]
[1673379534748,1.15479049,17447.0,17446.0,0.015]
[1673379534996,1.15479049,17447.0,17446.0,0.003]
[1673379535245,1.40664481,17447.0,17446.0,0.003]
[1673379535507,1.57850213,17447.0,17446.0,0.003]
[1673379536033,1.40640714,17447.0,17446.0,0.00532227]
[1673379536289,1.20640714,17447.0,17446.0,0.00532227]
[1673379536547,1.20640714,17447.0,17446.0,0.003]
[1673379537321,1.40640714,17447.0,17446.0,0.003]
[1673379537574,1.57850213,17447.0,17446.0,0.003]
[1673379537825,1.2347875,17447.0,17446.0,0.003]
[1673379539397,0.80514421,17447.0,17446.0,0.003]
[1673379540370,1.23472551,17447.0,17446.0,0.003]
[1673379541403,0.80514421,17447.0,17446.0,0.003]
[1673379542185,0.80514421,17447.0,17446.0,0.00532227]
[1673379542449,0.80514421,17447.0,17446.0,0.003]
[1673379542723,0.80514421,17447.0,17446.0,0.00292924]